bitfinex/quotes_SOLUSD_20220128
["timestamp","ask_amount","ask_price","bid_price","bid_amount"]
[1643372311281,22.9192,89.143,89.045,2.32509616]
[1643372311575,43.91554031,89.145,89.056,112.9]
[1643372311778,43.91554031,89.145,89.058,112.9]
[1643372311977,43.91554031,89.145,89.071,5.96271414]
[1643372312276,43.91554031,89.145,89.072,23.7054]
[1643372312575,43.91554031,89.145,89.072,25.78049616]
[1643372313175,43.91554031,89.145,89.072,23.7054]
[1643372313776,0.25,89.144,89.072,23.7054]
[1643372314977,0.25,89.144,89.072,23.4554]
[1643372315178,0.25,89.144,89.082,6.0]
[1643372317511,0.25,89.144,89.072,23.4554]
[1643372317712,0.25,89.144,89.073,0.25]
[1643372317912,0.25,89.144,89.082,6.0]
[1643372318913,0.25,89.144,89.072,23.4554]
[1643372320914,0.25,89.144,89.07,13.44]
[1643372323820,0.25,89.144,89.06,23.9773]
[1643372323821,0.25,89.144,89.062,32.28589509]
[1643372324422,0.25,89.144,89.06,40.1573]
[1643372324623,0.25,89.144,89.06,16.18]
[1643372325824,1.80425075,89.144,89.06,16.18]
[1643372326425,1.55425075,89.143,89.06,16.18]
[1643372326626,1.55425075,89.143,89.061,5.71421259]
[1643372326830,0.25,89.142,89.061,5.71421259]
[1643372327026,0.25,89.142,89.062,24.0521]
[1643372327825,0.25,89.144,89.062,24.0521]
[1643372328651,1.80425075,89.144,89.06,16.18]
[1643372328830,1.55425075,89.141,89.06,16.18]
[1643372329332,1.55425075,89.134,89.041,23.3807]
[1643372329529,1.55425075,89.138,89.043,0.25]
[1643372329732,0.25,89.133,89.043,0.25]
[1643372330730,0.25,89.133,89.042,1.76873182]
[1643372330931,0.25,89.137,89.042,1.76873182]
[1643372331131,1.55425075,89.137,89.042,113.15]
[1643372331340,1.55425075,89.141,89.052,6.0]
[1643372331533,1.55425075,89.152,89.06,16.18]
[1643372331731,66.154,89.16,89.06,16.18]
[1643372331732,1.55425075,89.155,89.06,16.18]
[1643372331932,1.55425075,89.155,89.07,6.0]
[1643372332131,1.55425075,89.153,89.071,25.96710125]
[1643372332330,1.55425075,89.153,89.072,112.9]
[1643372332531,1.55425075,89.153,89.082,6.0]
[1643372332731,1.55425075,89.16,89.082,6.0]
[1643372333132,1.55425075,89.156,89.083,6.0]
[1643372333333,1.55425075,89.156,89.073,22.5861]
[1643372333540,1.55425075,89.155,89.083,6.0]
[1643372333936,0.25,89.144,89.083,6.0]
[1643372334832,0.25,89.144,89.08,16.18]
[1643372335034,18.39625075,89.16,89.08,16.18]
[1643372335833,129.742,89.16,89.08,16.18]
[1643372336034,1.55425075,89.156,89.062,1.51873182]
[1643372336334,0.25,89.144,89.055,1.51873182]
[1643372336733,1.80425075,89.144,89.05,1.51873182]
[1643372336938,1.80425075,89.144,89.051,29.35024589]
[1643372337134,24.3619,89.143,89.052,23.5352]
[1643372337336,1.80425075,89.142,89.052,23.5352]
[1643372337537,1.55425075,89.133,89.052,23.5352]
[1643372337734,1.55425075,89.13,89.052,23.5352]
[1643372337934,1.55425075,89.126,89.04,24.859]
[1643372338134,42.54144868,89.125,89.041,31.35236191]
[1643372338335,42.79144868,89.125,89.041,31.35236191]
[1643372338535,41.23719793,89.125,89.041,31.35236191]
[1643372338735,1.55425075,89.124,89.041,31.35236191]
[1643372338935,41.23719793,89.125,89.042,23.584]
[1643372339136,1.55425075,89.122,89.042,23.584]
[1643372339436,0.25,89.121,89.026,1.51873182]
[1643372339639,22.9432,89.121,89.026,1.51873182]
[1643372339834,24.49745075,89.121,89.027,26.38961329]
[1643372340735,114.45425075,89.12,89.028,23.3827]
[1643372341137,0.25,89.119,89.028,23.3827]
[1643372341536,0.25,89.119,89.038,6.0]
[1643372341739,0.25,89.119,89.039,23.8596]
[1643372341939,0.25,89.119,89.04,16.18]
[1643372342143,0.25,89.119,89.041,6.83267093]
[1643372342339,0.25,89.124,89.05,6.0]
[1643372342638,0.25,89.124,89.051,23.3746]
[1643372344466,0.25,89.124,89.041,0.25]
[1643372344867,0.25,89.124,89.038,12.63]
[1643372345269,113.15,89.124,89.038,12.63]
[1643372345470,2.95669142,89.123,89.038,12.63]
[1643372345869,0.25,89.122,89.038,12.63]
[1643372346871,0.25,89.124,89.038,12.63]
[1643372347175,0.25,89.124,89.039,22.5241]
[1643372347369,113.15,89.124,89.039,22.5241]
[1643372347976,112.9,89.124,89.039,22.5241]
[1643372348172,40.98719793,89.125,89.04,0.25]
[1643372348572,40.98719793,89.125,89.04,16.43]
[1643372349378,0.25,89.124,89.04,16.43]
[1643372349573,40.98719793,89.125,89.04,16.43]
[1643372350774,0.25,89.124,89.04,16.43]
[1643372350974,113.15,89.124,89.04,16.43]
[1643372351375,113.15,89.124,89.04,16.18]
[1643372351575,113.15,89.124,89.039,22.5241]
[1643372352175,0.25,89.124,89.039,22.5241]
[1643372352378,0.25,89.124,89.04,29.62271808]
[1643372352577,40.98719793,89.125,89.04,45.80271808]
[1643372352777,40.98719793,89.125,89.05,6.0]
[1643372352976,40.98719793,89.125,89.051,22.722]
[1643372353178,40.98719793,89.125,89.051,22.972]
[1643372353576,40.98719793,89.125,89.051,22.722]
[1643372353776,0.25,89.124,89.052,0.25]
[1643372354477,0.25,89.124,89.051,22.722]
[1643372355987,0.25,89.124,89.031,1.51873182]
[1643372356184,0.25,89.124,88.98,56.175]
[1643372356185,75.0,89.122,88.996,3.01322271]
[1643372356386,75.0,89.122,88.991,24.9422]
[1643372356387,3.08433951,89.118,88.991,24.9422]
[1643372356586,10.0,89.11,88.991,24.9422]
[1643372356884,16.18,89.1,88.991,24.9422]
[1643372357186,31.65936207,89.099,88.991,24.9422]
[1643372357486,14.53596836,89.098,88.991,24.9422]
[1643372357683,3.1179621,89.097,88.971,22.8388]
[1643372357885,3.1179621,89.097,88.972,23.3848]
[1643372357886,23.10921837,89.097,88.972,23.3848]
[1643372358084,16.869,89.09,88.972,23.1348]
[1643372358283,0.25,89.089,88.972,23.1348]
[1643372358488,67.40948303,89.089,88.972,23.1348]
[1643372358693,31.80153534,89.088,88.972,23.1348]
[1643372358888,0.25,89.087,88.972,23.1348]
[1643372359086,37.48391605,89.087,88.972,23.1348]
[1643372359287,37.23391605,89.086,88.93,16.18]
[1643372359486,16.869,89.08,88.921,47.2661]
[1643372359685,72.431,89.07,88.921,47.2661]
[1643372359886,3.08433951,89.063,88.921,47.2661]
[1643372360091,0.30173179,89.065,88.922,38.00335119]
[1643372360092,16.18,89.05,88.922,38.00335119]
[1643372360286,113.15,89.049,88.922,38.00335119]
[1643372360488,112.9,89.047,88.922,38.00335119]
[1643372360886,0.25,89.046,88.922,38.00335119]
[1643372361087,16.875,89.04,88.922,38.00335119]
[1643372361289,112.9,89.029,88.922,38.00335119]
[1643372361490,39.3180973,89.028,88.922,38.00335119]
[1643372361690,112.9,89.027,88.922,38.00335119]
[1643372361891,0.25,89.026,88.922,38.00335119]
[1643372362091,3.20669142,89.026,88.922,38.00335119]
[1643372362294,14.53596836,89.025,88.923,0.25]
[1643372362520,16.877,89.0,88.923,0.25]
[1643372363418,16.877,89.0,88.922,38.00335119]
[1643372363618,16.877,89.0,88.923,0.25]
[1643372363818,16.877,89.0,88.922,38.00335119]
[1643372364317,16.877,89.0,88.923,0.25]
[1643372364717,59.18569142,89.04,88.923,2.32591337]
[1643372364920,56.229,89.04,88.932,6.0]
[1643372365119,56.229,89.04,88.933,6.0]
[1643372365322,59.18569142,89.04,88.934,0.25]
[1643372365524,40.34638146,89.039,88.934,6.25]
[1643372365721,40.34638146,89.039,88.934,6.0]
[1643372365927,2.95669142,89.038,88.934,6.0]
[1643372366122,32.55017854,89.019,88.932,6.0]
[1643372366328,0.25,89.018,88.933,0.25]
[1643372367230,35.67587668,88.999,88.933,0.25]
[1643372367926,2.95669142,88.998,88.933,0.25]
[1643372368122,2.95669142,88.998,88.922,38.00335119]
[1643372368123,16.875,88.99,88.922,38.00335119]
[1643372368323,16.875,88.99,88.923,0.25]
[1643372368525,0.25,88.989,88.888,0.0444633]
[1643372368723,3.20669142,88.989,88.888,0.0444633]
[1643372368925,2.95669142,88.988,88.89,6.0]
[1643372369126,16.44032674,88.988,88.891,6.0]
[1643372369325,16.878,88.98,88.891,6.0]
[1643372369525,36.97068332,88.979,88.892,34.72266026]
[1643372369727,37.22068332,88.979,88.892,34.72266026]
[1643372369928,40.17737474,88.979,88.902,6.0]
[1643372370128,2.95669142,88.978,88.902,6.0]
[1643372370329,0.25,88.977,88.902,6.0]
[1643372370840,2.95669142,88.976,88.902,6.0]
[1643372371030,35.67587668,88.963,88.903,0.25]
[1643372371231,35.67587668,88.963,88.902,6.0]
[1643372371431,0.25,88.962,88.902,6.0]
[1643372372735,48.34641611,89.005,88.902,6.0]
[1643372372930,112.9,89.004,88.902,6.0]
[1643372373133,115.85669142,89.004,88.902,6.0]
[1643372373331,56.274,88.97,88.902,6.0]
[1643372373532,24.55014389,88.98,88.903,2.32591337]
[1643372373931,24.55014389,88.98,88.904,2.07591337]
[1643372374332,24.55014389,88.98,88.905,0.25]
[1643372374532,24.55014389,88.98,88.91,6.0]
[1643372374732,0.25,88.979,88.911,11.81077974]
[1643372374935,16.879,88.97,88.911,12.06077974]
[1643372375333,0.25,88.969,88.911,12.06077974]
[1643372375534,0.25,88.969,88.911,11.81077974]
[1643372376035,16.881,88.96,88.85,209.5196]
[1643372376234,16.881,88.96,88.891,6.0]
[1643372376435,0.25,88.959,88.891,6.0]
[1643372376638,0.25,88.959,88.85,40.7296]
[1643372376839,0.25,88.959,88.87,13.5]
[1643372377039,0.25,88.959,88.882,43.95746241]
[1643372377040,16.883,88.95,88.882,43.95746241]
[1643372377238,35.3241687,88.949,88.882,43.95746241]
[1643372377538,38.53086012,88.949,88.85,37.3486]
[1643372377838,2.95669142,88.948,88.85,37.3486]
[1643372378038,35.5741687,88.949,88.85,37.3486]
[1643372378039,35.5741687,88.949,88.86,6.0]
[1643372378248,16.889,88.94,88.86,6.0]
[1643372378438,16.889,88.94,88.861,42.02875326]
[1643372378639,0.25,88.939,88.871,6.0]
[1643372379839,0.25,88.947,88.871,6.0]
[1643372380042,37.3223913,88.929,88.871,6.0]
[1643372380441,0.25,88.928,88.861,42.02875326]
[1643372380648,0.25,88.928,88.851,23.8522]
[1643372380854,0.25,88.928,88.82,13.5]
[1643372381450,0.25,88.928,88.832,42.68710504]
[1643372381647,16.889,88.92,88.832,42.68710504]
[1643372381846,37.3223913,88.929,88.854,2.07591337]
[1643372382048,37.3223913,88.929,88.855,3.84633496]
[1643372382248,37.3223913,88.929,88.856,0.25]
[1643372382448,37.3223913,88.929,88.855,3.84633496]
[1643372383151,0.25,88.928,88.855,3.84633496]
[1643372383355,0.25,88.928,88.856,0.25]
[1643372383550,37.3223913,88.929,88.856,0.25]
[1643372384553,37.3223913,88.929,88.865,6.0]
[1643372384857,0.25,88.928,88.865,6.0]
[1643372385859,28.714,88.95,88.865,6.0]
[1643372385860,11.83,88.95,88.889,2.07591337]
[1643372386256,0.25,88.949,88.89,0.25]
[1643372386457,0.25,88.949,88.89,13.75]
[1643372386855,41.56239141,88.949,88.9,6.0]
[1643372387056,0.25,88.949,88.901,6.0]
[1643372387657,0.25,88.949,88.902,0.25]
[1643372387857,0.25,88.979,88.902,0.25]
[1643372388060,43.0238569,88.979,88.902,0.25]
[1643372388463,16.879,88.97,88.902,0.25]
[1643372388674,16.879,88.97,88.901,6.0]
[1643372388877,0.25,88.969,88.901,6.0]
[1643372389276,0.25,88.969,88.891,36.89139574]
[1643372389477,0.25,88.969,88.901,6.0]
[1643372390077,0.25,88.969,88.891,36.89139574]
[1643372390279,29.8727031,88.959,88.891,36.89139574]
[1643372390679,0.25,88.958,88.901,6.0]
[1643372391079,0.25,88.958,88.881,24.6899]
[1643372391277,0.25,88.958,88.87,13.5]
[1643372391483,0.25,88.958,88.89,6.0]
[1643372391678,0.25,88.958,88.88,6.0]
[1643372391878,0.25,88.958,88.881,35.0102031]
[1643372392077,16.883,88.95,88.881,35.0102031]
[1643372392278,0.25,88.949,88.891,6.0]
[1643372392878,0.25,88.949,88.882,0.25]
[1643372393077,0.25,88.949,88.891,6.0]
[1643372393581,0.25,88.949,88.882,0.25]
[1643372393780,0.25,88.949,88.871,0.25]
[1643372394380,0.25,88.949,88.871,36.05329861]
[1643372395081,16.885,88.94,88.871,36.05329861]
[1643372395382,43.0238569,88.939,88.871,36.05329861]
[1643372397281,43.0238569,88.939,88.881,6.0]
[1643372397883,43.0238569,88.939,88.882,0.25]
[1643372399683,43.0238569,88.939,88.872,0.25]
[1643372399883,43.0238569,88.939,88.871,0.25]
[1643372400285,43.0238569,88.939,88.868,0.25]
[1643372400584,43.0238569,88.939,88.868,36.18094759]
[1643372400984,43.0238569,88.939,88.878,6.0]
[1643372401391,43.0238569,88.939,88.868,36.18094759]
[1643372401786,43.0238569,88.939,88.878,6.0]
[1643372404991,16.887,88.93,88.85,13.5]
[1643372405192,16.887,88.93,88.842,23.4342]
[1643372405391,0.25,88.929,88.844,24.9768]
[1643372405794,0.25,88.929,88.845,43.73328975]
[1643372406597,0.25,88.929,88.855,6.0]
[1643372406794,0.25,88.938,88.855,6.0]
[1643372406994,0.25,88.938,88.86,6.0]
[1643372407395,0.25,88.938,88.861,27.57985025]
[1643372407595,0.25,88.938,88.861,27.82985025]
[1643372408095,42.7738569,88.939,88.861,27.82985025]
[1643372408695,16.887,88.93,88.861,25.0297]
[1643372408897,16.887,88.93,88.861,24.7797]
[1643372409296,16.887,88.93,88.862,0.25]
[1643372409497,0.25,88.929,88.862,0.25]
[1643372409796,0.25,88.929,88.862,36.3502057]
[1643372410397,0.25,88.938,88.862,36.3502057]
[1643372411398,0.25,88.938,88.872,6.0]
[1643372411799,0.25,88.938,88.873,0.25]
[1643372412002,0.25,88.938,88.88,6.0]
[1643372412900,0.25,88.938,88.887,6.0]
[1643372415304,0.25,88.938,88.87,13.5]
[1643372415504,0.25,88.938,88.871,0.25]
[1643372416506,0.25,88.938,88.87,13.5]
[1643372416706,0.25,88.938,88.871,0.25]
[1643372417505,0.25,88.938,88.88,6.0]
[1643372417905,0.25,88.938,88.871,0.25]
[1643372418506,0.25,88.938,88.88,6.0]
[1643372418907,0.25,88.938,88.871,0.25]
[1643372419108,0.25,88.938,88.86,13.5]
[1643372419414,3.20669142,88.938,88.84,13.5]
[1643372419607,0.25,88.938,88.873,6.0]
[1643372419807,0.25,88.938,88.85,13.5]
[1643372420006,0.25,88.938,88.862,45.88624957]
[1643372420207,0.25,88.938,88.85,13.5]
[1643372421007,16.887,88.93,88.85,13.5]
[1643372421208,16.887,88.93,88.862,43.01775018]
[1643372421409,0.25,88.929,88.862,43.01775018]
[1643372422432,0.25,88.938,88.862,43.01775018]
[1643372422636,0.25,88.938,88.85,13.5]
[1643372422834,0.25,88.938,88.86,6.0]
[1643372423033,0.25,88.938,88.861,23.2511]
[1643372423534,0.25,88.938,88.871,6.0]
[1643372423935,2.95669142,88.937,88.861,23.2511]
[1643372424135,0.25,88.938,88.861,23.2511]
[1643372424638,2.95669142,88.937,88.861,23.2511]
[1643372424837,0.25,88.936,88.861,23.2511]
[1643372425038,16.887,88.93,88.861,23.2511]
[1643372425438,0.25,88.929,88.862,0.25]
[1643372426839,42.7738569,88.939,88.862,0.25]
[1643372427038,42.7738569,88.939,88.871,6.0]
[1643372427241,42.7738569,88.939,88.872,45.4193461]
[1643372427437,42.7738569,88.939,88.88,6.0]
[1643372427637,42.7738569,88.939,88.872,45.6693461]
[1643372427638,42.7738569,88.939,88.882,6.0]
[1643372427938,42.7738569,88.939,88.883,0.25]
[1643372428237,42.7738569,88.939,88.882,6.0]
[1643372428838,0.25,88.938,88.872,45.4193461]
[1643372429040,0.25,88.938,88.873,0.25]
[1643372429443,0.25,88.938,88.862,24.8012]
[1643372429844,0.25,88.938,88.863,0.25]
[1643372430040,0.25,88.938,88.872,6.0]
[1643372430441,16.887,88.93,88.863,0.25]
[1643372430845,0.25,88.929,88.863,0.25]
[1643372431347,13.49,88.929,88.863,0.25]
[1643372432947,0.25,88.929,88.863,0.25]
[1643372433948,0.25,88.938,88.872,6.0]
[1643372434147,0.25,88.938,88.862,24.8012]
[1643372434351,2.95669142,88.937,88.84,16.22]
[1643372434550,2.95669142,88.937,88.843,24.4124]
[1643372434750,0.25,88.936,88.843,63.69320447]
[1643372435150,25.0517,88.936,88.843,63.69320447]
[1643372435349,2.95669142,88.935,88.843,24.6624]
[1643372435751,16.887,88.93,88.843,24.6624]
[1643372436154,3.20669142,88.929,88.843,24.6624]
[1643372436557,2.95669142,88.928,88.843,24.6624]
[1643372436753,16.889,88.92,88.843,24.4124]
[1643372437157,2.95669142,88.919,88.843,24.4124]
[1643372437354,3.20669142,88.919,88.843,24.4124]
[1643372437755,112.9,88.917,88.843,24.4124]
[1643372437954,16.892,88.91,88.83,16.22]
[1643372438154,112.9,88.909,88.82,16.22]
[1643372438354,116.10669142,88.909,88.81,16.9932528]
[1643372438554,2.95669142,88.908,88.81,16.9932528]
[1643372439054,0.25,88.907,88.81,16.9932528]
[1643372439454,2.95669142,88.906,88.81,16.9932528]
[1643372439854,149.44331503,88.904,88.81,16.9932528]
[1643372440057,112.9,88.889,88.81,16.9932528]
[1643372440254,36.01639953,88.888,88.81,16.9932528]
[1643372440455,112.9,88.887,88.81,0.7732528]
[1643372440859,0.25,88.886,88.81,0.7732528]
[1643372441060,3.20669142,88.886,88.81,0.7732528]
[1643372441259,2.95669142,88.885,88.81,0.7732528]
[1643372441661,112.9,88.879,88.81,0.7732528]
[1643372441861,0.25,88.878,88.81,0.7732528]
[1643372442067,75.0,88.877,88.781,23.6872]
[1643372442265,0.25,88.876,88.751,65.10067929]
[1643372442463,0.25,88.876,88.745,23.5715]
[1643372442464,24.0938,88.876,88.745,43.7003084]
[1643372442667,16.9,88.86,88.731,3.01322271]
[1643372442864,2.95669142,88.875,88.731,3.01322271]
[1643372442865,48.11668287,88.875,88.731,3.01322271]
[1643372443068,24.018,88.874,88.746,2.08465579]
[1643372443266,3.08433951,88.887,88.76,16.22]
[1643372443466,24.018,88.901,88.76,16.22]
[1643372443668,16.897,88.88,88.771,36.13707471]
[1643372443870,16.897,88.88,88.772,24.5791]
[1643372444066,16.897,88.88,88.782,6.0]
[1643372444267,23.9905,88.887,88.782,6.0]
[1643372444268,0.25,88.879,88.783,0.25]
[1643372444467,0.25,88.879,88.783,24.8291]
[1643372444668,16.901,88.86,88.783,24.8291]
[1643372444866,2.97296048,88.859,88.782,6.0]
[1643372445066,2.97296048,88.859,88.771,36.13707471]
[1643372445067,2.97296048,88.859,88.783,0.25]
[1643372445868,16.903,88.85,88.783,0.25]
[1643372446268,0.25,88.849,88.782,6.0]
[1643372446968,0.25,88.849,88.7,3.01322271]
[1643372446969,16.905,88.84,88.781,6.0]
[1643372447367,0.25,88.839,88.772,6.0]
[1643372447569,0.25,88.839,88.763,0.25]
[1643372447969,36.26639953,88.839,88.763,44.53668461]
[1643372449790,36.26639953,88.839,88.773,6.0]
[1643372450692,16.906,88.83,88.72,202.72]
[1643372450890,16.906,88.83,88.736,24.4251]
[1643372450891,0.25,88.829,88.736,24.4251]
[1643372451691,0.25,88.829,88.737,46.20187102]
[1643372451893,16.91,88.82,88.737,46.20187102]
[1643372452093,2.72296048,88.819,88.737,46.20187102]
[1643372452293,2.97296048,88.819,88.737,46.20187102]
[1643372452792,24.7868,88.818,88.737,46.20187102]
[1643372453191,24.7868,88.818,88.721,22.9786]
[1643372453192,16.911,88.81,88.721,22.9786]
[1643372453393,0.25,88.809,88.703,22.7234]
[1643372453591,112.9,88.808,88.703,22.7234]
[1643372453793,0.25,88.807,88.703,22.7234]
[1643372454193,24.6454,88.807,88.704,38.22497184]
[1643372454594,24.6454,88.807,88.714,6.0]
[1643372455096,24.6454,88.807,88.71,16.22]
[1643372455097,24.6454,88.807,88.721,39.78811129]
[1643372455295,24.6454,88.807,88.72,6.0]
[1643372455497,16.915,88.8,88.72,6.0]
[1643372455896,0.25,88.799,88.713,6.0]
[1643372456296,28.42441912,88.799,88.713,6.0]
[1643372456498,28.42441912,88.799,88.714,39.09885168]
[1643372456906,28.42441912,88.799,88.724,6.0]
[1643372458398,28.17441912,88.799,88.724,6.0]
[1643372458999,28.17441912,88.799,88.725,6.0]
[1643372459402,28.17441912,88.799,88.7,16.22]
[1643372459600,28.17441912,88.799,88.692,24.947]
[1643372459902,16.917,88.79,88.66,16.22]
[1643372460201,33.137,88.79,88.729,0.11957159]
[1643372460399,24.9339,88.789,88.729,0.11957159]
[1643372460800,36.26896265,88.789,88.729,0.11957159]
[1643372462604,112.9,88.788,88.729,0.11957159]
[1643372462803,0.25,88.787,88.729,0.11957159]
[1643372463003,11.58506265,88.787,88.729,0.00957159]
[1643372463206,11.33506265,88.786,88.729,0.00957159]
[1643372463403,0.25,88.785,88.729,0.00957159]
[1643372463604,16.22,88.78,88.729,0.00957159]
[1643372463804,16.22,88.78,88.621,47.5163]
[1643372463805,56.436,88.76,88.621,47.5163]
[1643372464004,16.22,88.75,88.621,47.5163]
[1643372464206,48.3071,88.749,88.63,2.08084389]
[1643372464407,48.5571,88.749,88.63,2.08084389]
[1643372464605,28.17441912,88.748,88.623,35.23739343]
[1643372464808,0.25,88.747,88.623,35.23739343]
[1643372465005,16.927,88.74,88.633,6.0]
[1643372465405,0.25,88.739,88.633,6.0]
[1643372465607,11.58506265,88.739,88.6,16.22]
[1643372465810,2.95669142,88.738,88.6,16.22]
[1643372466005,2.95669142,88.738,88.571,49.5767]
[1643372466006,14.29175407,88.738,88.58,16.22]
[1643372466208,16.932,88.73,88.58,16.22]
[1643372466407,112.9,88.719,88.571,49.5767]
[1643372466606,170.77614089,88.719,88.572,45.65669955]
[1643372466906,29.56258371,88.718,88.572,45.65669955]
[1643372467107,112.9,88.717,88.582,6.0]
[1643372467407,112.9,88.709,88.582,6.0]
[1643372467607,112.9,88.699,88.582,6.0]
[1643372467807,28.42441912,88.698,88.582,6.0]
[1643372468008,112.9,88.697,88.582,6.0]
[1643372468209,112.9,88.697,88.583,0.25]
[1643372468415,23.5206,88.696,88.583,23.2428]
[1643372468706,23.2706,88.696,88.594,34.78394044]
[1643372469108,23.2706,88.696,88.649,0.00458317]
[1643372469308,32.26927513,88.695,88.649,0.00458317]
[1643372469517,16.22,88.68,88.649,0.00458317]
[1643372469712,16.945,88.67,88.649,0.00458317]
[1643372469908,0.25,88.669,88.649,0.00458317]
[1643372470511,11.33506265,88.668,88.649,0.00458317]
[1643372470711,14.29175407,88.668,88.649,0.00458317]
[1643372470915,112.9,88.666,88.649,0.00458317]
[1643372471112,75.0,88.665,88.51,16.22]
[1643372471315,113.15,88.664,88.51,16.22]
[1643372471515,16.22,88.65,88.51,16.22]
[1643372471716,16.952,88.64,88.51,15.72]
[1643372471912,151.15225557,88.639,88.51,64.40175691]
[1643372472114,151.40225557,88.639,88.51,15.72]
[1643372472313,11.33506265,88.638,88.49,16.91723961]
[1643372472517,11.33506265,88.638,88.456,111.9]
[1643372472518,0.32094066,88.629,88.47,16.22]
[1643372472728,33.182,88.62,88.47,16.22]
[1643372472918,33.182,88.62,88.462,16.91723961]
[1643372472919,48.7783,88.619,88.462,16.91723961]
[1643372473121,0.48710444,88.618,88.463,47.77860959]
[1643372473320,17.09523279,88.618,88.463,47.77860959]
[1643372473525,16.60812835,88.617,88.463,47.77860959]
[1643372473719,49.12740348,88.617,88.463,47.77860959]
[1643372473920,48.87740348,88.617,88.457,47.4386]
[1643372474121,259.267,88.61,88.457,47.4386]
[1643372474421,218.94,88.6,88.43,16.22]
[1643372474629,202.72,88.59,88.427,2.08652364]
[1643372474830,16.22,88.58,88.439,2.08652364]
[1643372475050,112.9,88.578,88.439,47.11706615]
[1643372475250,0.25,88.577,88.439,47.11706615]
[1643372475450,10.8,88.577,88.439,47.11706615]
[1643372475652,3.75105148,88.549,88.439,47.11706615]
[1643372476059,3.75105148,88.549,88.44,19.00376325]
[1643372476450,3.75105148,88.549,88.45,22.22]
[1643372476651,3.75105148,88.549,88.451,47.5893]
[1643372476852,3.75105148,88.549,88.451,72.84285819]
[1643372477051,3.75105148,88.549,88.451,66.59285819]
[1643372477252,0.25,88.548,88.451,64.50653961]
[1643372478051,0.25,88.548,88.453,33.32357384]
[1643372478254,3.75105148,88.549,88.453,33.32357384]
[1643372478455,1.53466553,88.675,88.454,12.83757486]
[1643372478756,16.22,88.58,88.464,6.0]
[1643372479155,16.22,88.58,88.465,18.83757486]
[1643372479457,27.34979537,88.579,88.467,42.76050952]
[1643372479653,27.34979537,88.579,88.477,6.0]
[1643372479855,27.34979537,88.579,88.478,24.2948]
[1643372480054,27.34979537,88.579,88.488,6.0]
[1643372480255,27.34979537,88.579,88.489,37.68013047]
[1643372480454,27.34979537,88.579,88.489,37.93013047]
[1643372480654,27.34979537,88.579,88.489,37.68013047]
[1643372480853,0.25,88.578,88.489,37.68013047]
[1643372481856,116.10669142,88.578,88.489,37.68013047]
[1643372482756,113.15,88.578,88.489,37.68013047]
[1643372483156,16.961,88.57,88.489,37.68013047]
[1643372483354,113.15,88.569,88.489,37.68013047]
[1643372485663,16.962,88.56,88.45,16.22]
[1643372485872,113.15,88.569,88.45,16.22]
[1643372485873,0.25,88.559,88.45,16.22]
[1643372486464,0.25,88.559,88.453,41.88344781]
[1643372486667,0.25,88.559,88.462,6.0]
[1643372486865,0.25,88.559,88.463,6.25]
[1643372487065,0.25,88.578,88.474,36.55192852]
[1643372487267,0.25,88.578,88.475,23.6701]
[1643372487465,0.25,88.578,88.484,6.0]